bitfinex/quotes_SOLUSD_20250806
["timestamp","ask_amount","ask_price","bid_price","bid_amount"]
[1754486388966,4.09416281,164.22,164.2,0.06]
[1754486389291,0.71,164.21,164.2,0.06]
[1754486389880,4.09416281,164.22,164.2,0.06]
[1754486390089,4.80416281,164.22,164.2,0.06]
[1754486390595,4.80416281,164.22,164.2,62.26]
[1754486390792,0.71,164.21,164.2,62.26]
[1754486391091,10.03145767,164.21,164.2,62.26]
[1754486392089,4.80416281,164.21,164.2,62.26]
[1754486392282,4.09416281,164.21,164.2,62.26]
[1754486392791,4.09416281,164.22,164.2,62.26]
[1754486392999,4.09416281,164.21,164.2,62.26]
[1754486393202,4.09416281,164.22,164.2,62.26]
[1754486393375,4.80416281,164.21,164.2,62.26]
[1754486393685,5.93729486,164.21,164.2,62.26]
[1754486396597,5.93729486,164.21,164.2,0.06]
[1754486397914,0.71,164.21,164.2,0.06]
[1754486398222,5.93729486,164.21,164.2,0.06]
[1754486401236,55.18705796,164.21,164.2,0.06]
[1754486401524,59.28204835,164.21,164.2,0.06]
[1754486401724,66.72634005,164.21,164.2,0.06]
[1754486402887,71.84825427,164.21,164.2,0.06]
[1754486403904,4.09499039,164.21,164.2,0.06]
[1754486404112,47.25499039,164.21,164.2,0.78]
[1754486404495,47.25499039,164.21,164.2,0.06]
[1754486405402,47.97499039,164.21,164.2,0.06]
[1754486405605,53.20228525,164.21,164.2,0.06]
[1754486406811,47.97499039,164.21,164.2,0.06]
[1754486406997,47.25499039,164.21,164.2,0.06]
[1754486408308,47.97499039,164.21,164.2,0.06]
[1754486408823,47.25499039,164.21,164.2,0.06]
[1754486411033,4.09499039,164.21,164.2,6.00729486]
[1754486412142,22.29499591,164.26,164.21,6.0897631]
[1754486412430,47.20356332,164.25,164.23,5.22729486]
[1754486412605,4.10356332,164.24,164.23,5.22729486]
[1754486413109,11.94578683,164.26,164.23,21.05351043]
[1754486413316,11.94578683,164.26,164.25,5.22729486]
[1754486413627,11.94578683,164.26,164.25,21.05351043]
[1754486414238,11.94578683,164.26,164.25,27.42611363]
[1754486415137,0.03,164.28,164.26,20.61783357]
[1754486415329,0.03,164.28,164.27,20.61783357]
[1754486415523,1e-08,164.28,164.27,21.33783357]
[1754486415724,0.03,164.3,164.29,15.39053871]
[1754486416045,0.03,164.3,164.29,25.84512843]
[1754486416344,0.03,164.3,164.29,32.65192616]
[1754486419137,0.03,164.32,164.31,41.10621557]
[1754486419340,0.03,164.32,164.31,89.39351043]
[1754486419547,0.03,164.32,164.31,90.11351043]
[1754486420251,0.03,164.32,164.31,96.19956727]
[1754486420424,0.72,164.41,164.32,15.10621557]
[1754486420628,0.72,164.41,164.35,20.61783357]
[1754486420843,0.72,164.41,164.35,82.81783357]
[1754486421053,0.72,164.41,164.35,83.53783357]
[1754486421858,0.72,164.4,164.35,83.53783357]
[1754486422027,0.72,164.39,164.35,82.81783357]
[1754486422229,0.72,164.39,164.35,89.62240917]
[1754486425354,0.72,164.38,164.35,82.53351043]
[1754486427254,0.75,164.36,164.35,62.2]
[1754486427954,0.75,164.36,164.35,67.42729486]
[1754486428850,0.03,164.36,164.35,67.42729486]
[1754486429361,0.03,164.36,164.35,89.33808603]
[1754486431660,0.03,164.36,164.32,62.92]
[1754486431860,0.72,164.35,164.34,5.22729486]
[1754486434161,0.72,164.35,164.32,68.28554371]
[1754486434461,0.66,164.35,164.33,5.22729486]
[1754486434854,0.66,164.35,164.33,67.42729486]
[1754486435246,0.03,164.36,164.33,67.42729486]
[1754486435570,0.66,164.35,164.33,67.42729486]
[1754486436875,0.03,164.36,164.33,67.42729486]
[1754486437038,0.66,164.34,164.33,67.42729486]
[1754486438369,0.69,164.36,164.33,67.42729486]
[1754486438566,0.66,164.35,164.33,62.2]
[1754486438770,0.66,164.35,164.33,68.28530329]
[1754486439072,0.66,164.35,164.33,62.2]
[1754486439767,0.03,164.36,164.33,62.2]
[1754486439969,0.69,164.36,164.33,62.2]
[1754486440172,0.03,164.36,164.35,5.22729486]
[1754486440573,0.03,164.36,164.35,82.53351043]
[1754486440874,0.03,164.36,164.35,89.28808603]
[1754486442173,0.03,164.36,164.35,70.27240917]
[1754486442992,0.03,164.36,164.35,48.12729486]
[1754486443154,0.03,164.36,164.35,5.22729486]
[1754486443883,0.03,164.36,164.35,11.31187046]
[1754486444181,0.03,164.36,164.35,11.98187046]
[1754486444482,0.03,164.36,164.35,12.2661936]
[1754486444655,0.03,164.36,164.35,55.1661936]
[1754486446352,0.03,164.36,164.35,70.27240917]
[1754486446581,0.03,164.36,164.35,132.47240917]
[1754486448200,0.1,164.43,164.38,15.10621557]
[1754486448479,0.1,164.43,164.42,20.33351043]
[1754486448993,0.1,164.43,164.42,21.28783357]
[1754486449966,0.1,164.43,164.42,27.36981872]
[1754486454089,0.76,164.43,164.42,21.18820072]
[1754486454276,0.1,164.43,164.42,20.33351043]
[1754486454477,0.76,164.43,164.42,77.27621556]
[1754486454983,6.84162317,164.43,164.39,62.16999999]
[1754486455196,0.66,164.42,164.4,15.10621557]
[1754486455560,0.66,164.41,164.4,15.10621557]
[1754486456488,5.32729486,164.43,164.4,15.10621557]
[1754486456664,0.66,164.42,164.4,15.10621557]
[1754486458203,5.32729486,164.43,164.4,15.10621557]
[1754486458384,0.66,164.41,164.4,15.10621557]
[1754486458571,0.76,164.43,164.4,15.10621557]
[1754486458774,0.1,164.43,164.41,5.22729486]
[1754486459464,0.1,164.43,164.41,11.30953364]
[1754486459669,0.1,164.43,164.42,15.10621557]
[1754486459968,0.1,164.43,164.42,20.33351043]
[1754486460169,0.1,164.43,164.42,21.00351043]
[1754486460782,0.1,164.43,164.42,63.88351043]
[1754486461670,0.1,164.43,164.42,69.96549558]
[1754486461868,0.1,164.43,164.42,69.29549558]
[1754486462099,0.76,164.43,164.42,21.18820072]
[1754486462304,0.1,164.43,164.42,27.08549558]
[1754486462878,0.1,164.43,164.42,89.53981871]
[1754486469606,0.1,164.43,164.42,131.72981871]
[1754486470020,0.82,164.43,164.42,77.27621556]
[1754486470313,0.82,164.43,164.42,88.58549557]
[1754486470498,0.82,164.43,164.42,83.35820071]
[1754486471016,0.82,164.43,164.42,88.58549557]
[1754486473410,0.82,164.43,164.42,83.35820071]
[1754486473909,0.82,164.43,164.42,88.58549557]
[1754486475724,0.82,164.43,164.42,83.35820071]
[1754486476100,6.04729486,164.43,164.42,62.16999999]
[1754486476297,0.82,164.43,164.42,62.16999999]
[1754486476518,0.1,164.43,164.42,82.50351042]
[1754486476695,0.1,164.43,164.42,88.58549557]
[1754486478021,0.1,164.43,164.42,89.30549557]
[1754486478799,0.1,164.43,164.42,89.58981871]
[1754486483916,0.1,164.43,164.42,88.86981871]
[1754486485407,0.1,164.43,164.42,89.58981871]
[1754486485708,0.1,164.43,164.42,84.36252385]
[1754486485920,0.1,164.43,164.42,89.58981871]
[1754486488208,0.03,164.45,164.43,77.17621556]
[1754486488400,0.03,164.45,164.44,42.82]
[1754486489121,0.03,164.45,164.44,63.87351043]
[1754486489432,0.03,164.45,164.44,64.15783357]
[1754486490341,0.03,164.45,164.44,69.95475586]
[1754486490641,0.03,164.45,164.44,131.92475585]
[1754486493709,1.5027195,164.48,164.44,131.92475585]
[1754486493710,0.7827195,164.48,164.45,15.10621557]
[1754486493943,0.7827195,164.48,164.47,5.22729486]
[1754486494449,1e-08,164.48,164.47,83.01351042]
[1754486495644,1e-08,164.48,164.47,82.30351042]
[1754486495947,1e-08,164.48,164.47,89.09364661]
[1754486496530,1e-08,164.48,164.47,115.09364661]
[1754486496706,1e-08,164.48,164.47,114.38364661]
[1754486498305,0.71000001,164.48,164.47,48.84013619]
[1754486498633,0.71000001,164.48,164.45,6.08077705]
[1754486498823,5.22729486,164.47,164.44,15.10621557]
[1754486499020,0.71,164.46,164.42,11.30928001]
[1754486499209,0.71,164.46,164.43,42.76]
[1754486499409,0.71,164.46,164.43,47.98729486]
[1754486499760,0.71,164.46,164.45,20.33351043]
[1754486500047,1e-08,164.48,164.45,69.19438607]
[1754486500216,0.71000001,164.48,164.47,15.10621557]
[1754486500412,1e-08,164.48,164.47,57.88621557]
[1754486500721,5.22729487,164.48,164.44,42.78]
[1754486501039,5.93729486,164.47,164.44,42.78]
[1754486501333,0.71,164.46,164.44,42.78]
[1754486501541,0.71,164.46,164.43,57.88621557]
[1754486502117,0.71,164.45,164.44,21.187461]
[1754486503544,0.71,164.47,164.45,15.10621557]
[1754486503732,0.71,164.47,164.45,63.13351043]
[1754486504329,0.71,164.47,164.46,6.08050589]
[1754486506445,5.93729486,164.47,164.45,63.9869511]
[1754486506649,5.93729486,164.47,164.45,21.1869511]
[1754486506957,0.71,164.46,164.45,21.1869511]
[1754486507632,0.71000001,164.48,164.45,21.1869511]
[1754486507951,1e-08,164.48,164.47,15.10621557]
[1754486508381,1e-08,164.48,164.47,26.41364662]
[1754486508948,1e-08,164.48,164.47,88.38364661]
[1754486509565,1e-08,164.48,164.47,83.15635175]
[1754486512381,1e-08,164.48,164.47,83.86635175]
[1754486512855,1e-08,164.48,164.47,83.15635175]
[1754486513357,0.03000001,164.48,164.47,83.15635175]
[1754486513938,0.03000001,164.48,164.47,77.07621556]
[1754486514259,0.03000001,164.48,164.47,125.89635175]
[1754486514770,0.74000001,164.48,164.47,125.89635175]
[1754486515070,0.74000001,164.48,164.47,83.15635175]
[1754486515239,0.74000001,164.48,164.47,77.07621556]
[1754486516362,0.74000001,164.48,164.47,61.96999999]
[1754486516549,5.96729487,164.48,164.47,61.96999999]
[1754486516860,5.96729487,164.48,164.44,104.70999999]
[1754486517067,5.93729486,164.47,164.44,104.70999999]
[1754486517242,5.93729486,164.47,164.44,61.96999999]
[1754486517443,0.71,164.46,164.44,61.96999999]
[1754486517641,5.22729486,164.47,164.44,61.96999999]
[1754486517854,0.71,164.45,164.44,77.07621556]
[1754486518434,5.93729486,164.45,164.44,61.96999999]
[1754486520570,0.71,164.45,164.44,61.96999999]
[1754486520739,5.96729487,164.48,164.44,68.05124542]
[1754486520942,5.93729486,164.47,164.44,104.70999999]
[1754486521265,5.93729486,164.46,164.44,61.96999999]
[1754486521452,0.71,164.46,164.44,68.05123305]
[1754486521767,5.93729486,164.47,164.44,68.05123305]
[1754486521971,5.22729486,164.46,164.44,61.96999999]
[1754486522271,5.93729486,164.46,164.44,61.96999999]
[1754486522471,0.71,164.46,164.44,61.96999999]
[1754486522646,4.83675219,164.48,164.44,61.96999999]
[1754486522847,5.93729486,164.47,164.44,61.96999999]
[1754486523971,5.93729486,164.47,164.44,68.75121246]
[1754486524262,5.93729486,164.47,164.44,68.05121246]
[1754486524471,0.71,164.46,164.44,68.05121246]
[1754486524648,5.22729486,164.47,164.44,68.05121246]
[1754486524863,5.93729486,164.47,164.44,68.05121246]
[1754486525050,5.93729486,164.47,164.44,68.75121246]
[1754486525776,5.93729486,164.47,164.44,61.96999999]
[1754486526060,5.22729486,164.46,164.44,61.96999999]
[1754486526267,5.93729486,164.46,164.44,61.96999999]
[1754486526452,5.22729486,164.47,164.44,68.05121076]
[1754486526655,5.22729486,164.47,164.44,68.75121076]
[1754486527053,5.93729486,164.47,164.44,61.96999999]
[1754486527260,5.22729486,164.46,164.44,61.96999999]
[1754486527660,5.93729486,164.46,164.44,61.96999999]
[1754486528473,5.22729486,164.46,164.44,61.96999999]
[1754486528773,5.22729486,164.47,164.44,68.75118519]
[1754486528976,5.93729486,164.47,164.44,68.75118519]
[1754486529548,5.93729486,164.47,164.44,68.05118519]
[1754486530047,5.93729486,164.47,164.44,68.75118519]
[1754486530245,5.22729486,164.47,164.44,68.75118519]
[1754486530445,5.93729486,164.47,164.44,61.96999999]
[1754486530894,5.93729486,164.47,164.44,68.75112122]
[1754486531051,5.22729486,164.47,164.44,68.75112122]
[1754486532343,5.93729486,164.47,164.44,62.66999999]
[1754486532575,5.93729486,164.47,164.44,61.96999999]
[1754486532770,5.22729486,164.46,164.44,61.96999999]
[1754486532973,5.22729486,164.47,164.44,68.05123526]
[1754486533160,5.22729486,164.47,164.45,0.7]
[1754486533360,5.22729486,164.47,164.44,68.05123526]
[1754486533757,5.22729486,164.47,164.44,68.75123526]
[1754486534473,0.03000001,164.48,164.45,0.7]
[1754486534771,0.03000001,164.48,164.46,0.7]
[1754486535168,0.03000001,164.48,164.47,0.7]
[1754486535873,0.03000001,164.48,164.47,21.03351043]
[1754486536185,0.03000001,164.48,164.47,69.85364662]
[1754486536866,1e-08,164.48,164.47,132.23796976]
[1754486537065,1e-08,164.49,164.48,15.10621557]
[1754486537277,1e-08,164.49,164.48,21.03351043]
[1754486538783,1e-08,164.49,164.48,15.80621557]
[1754486538955,1e-08,164.49,164.48,21.03351043]
[1754486542472,1e-08,164.49,164.48,15.10621557]
[1754486542771,1e-08,164.49,164.48,21.03351043]
[1754486544697,1e-08,164.49,164.48,63.07351043]
[1754486545070,0.71000001,164.49,164.48,15.10621557]
[1754486545478,5.93729487,164.49,164.45,42.74]
[1754486545676,0.71,164.48,164.46,15.10621557]
[1754486546391,1e-08,164.49,164.46,20.33351043]
[1754486546688,0.71000001,164.49,164.46,20.33351043]
[1754486547083,0.71000001,164.49,164.46,21.03351043]
[1754486547386,1e-08,164.49,164.48,20.33351043]
[1754486547599,1e-08,164.49,164.48,21.03351043]
[1754486547965,1e-08,164.49,164.48,15.80621557]
[1754486548171,1e-08,164.49,164.48,21.03351043]
[1754486549366,1e-08,164.49,164.48,15.10621557]
[1754486549665,0.71000001,164.49,164.47,15.10621557]
[1754486549871,5.93729487,164.49,164.46,15.10621557]
[1754486550087,0.71,164.48,164.46,15.10621557]
[1754486550293,0.71,164.47,164.45,15.10621557]
[1754486550491,5.22729486,164.48,164.45,15.10621557]
[1754486550787,0.71,164.46,164.45,15.10621557]
[1754486551004,0.71,164.46,164.45,62.1]
[1754486554389,5.22729486,164.47,164.45,68.18087564]
[1754486554712,5.92729487,164.49,164.45,68.18087564]
[1754486554880,5.92729487,164.49,164.45,68.87087564]
[1754486555704,0.7,164.48,164.45,68.18087564]
[1754486556583,0.7,164.48,164.45,68.87087564]
[1754486556910,5.22729487,164.49,164.46,15.10621557]
[1754486557076,1e-08,164.49,164.46,15.79621557]
[1754486557511,1e-08,164.49,164.46,57.84621557]
[1754486557512,5.22729487,164.49,164.46,57.84621557]
[1754486557813,0.7,164.48,164.46,15.10621557]
[1754486558706,5.22729487,164.49,164.46,15.10621557]
[1754486558885,5.22729487,164.49,164.47,6.08013619]
[1754486559091,1e-08,164.49,164.47,6.08013619]
[1754486559292,0.70000001,164.49,164.46,21.18658646]
[1754486559492,5.92729487,164.49,164.46,21.18658646]
[1754486559707,0.7,164.48,164.46,21.18658646]
[1754486560582,0.7,164.48,164.46,21.18666786]
[1754486561605,1e-08,164.49,164.46,21.18666786]
[1754486561806,5.92729487,164.49,164.46,21.18666786]
[1754486562110,5.92729487,164.49,164.46,83.28666786]
[1754486563427,5.92729487,164.49,164.46,83.97666786]
[1754486563787,1e-08,164.49,164.46,83.97666786]
[1754486564001,1e-08,164.49,164.47,0.69]
[1754486565416,1e-08,164.49,164.48,21.1859821]
[1754486565621,1e-08,164.49,164.48,21.8759821]
[1754486566645,1e-08,164.49,164.48,77.20621557]
[1754486567228,1e-08,164.49,164.48,83.2859821]
[1754486567407,1e-08,164.49,164.48,83.9759821]
[1754486568420,1e-08,164.49,164.48,83.2859821]
[1754486568621,1e-08,164.49,164.48,126.0059821]
[1754486569214,1e-08,164.49,164.48,126.6959821]
[1754486569414,1e-08,164.49,164.48,126.0059821]
[1754486570010,1e-08,164.49,164.48,83.2859821]
[1754486571233,1e-08,164.49,164.48,83.9759821]
[1754486571428,1e-08,164.49,164.48,89.20327696]
[1754486575845,1e-08,164.49,164.48,89.4876001]
[1754486576027,1e-08,164.49,164.48,90.09557675]
[1754486576430,0.7,164.57,164.48,90.09557675]
[1754486576431,0.7,164.57,164.52,15.10621557]
[1754486576741,0.7,164.57,164.55,5.22729486]
[1754486577121,4.78975434,164.59,164.56,20.33351043]
[1754486577338,0.7,164.59,164.56,20.33351043]
[1754486577528,0.7,164.58,164.56,63.05351043]
[1754486578949,0.7,164.58,164.56,69.13030144]
[1754486579544,0.7,164.57,164.56,15.10621557]
[1754486579748,5.22729486,164.59,164.56,21.18302645]
[1754486579941,0.7,164.58,164.56,15.10621557]
[1754486580924,8.09105687,164.6,164.56,26.41011296]
[1754486581125,0.7,164.59,164.56,26.41011296]
[1754486581655,0.7,164.58,164.56,26.41011296]
[1754486582253,0.7,164.57,164.56,62.1]
[1754486584253,0.73,164.57,164.56,62.1]
[1754486584724,0.03,164.57,164.56,62.1]
[1754486585850,0.72,164.57,164.55,62.1]
[1754486586052,0.69,164.56,164.55,77.20621557]
[1754486586373,0.03,164.57,164.55,77.20621557]
[1754486586525,0.03,164.57,164.55,83.28333087]
[1754486587469,0.03,164.57,164.55,77.91621557]
[1754486587633,0.03,164.57,164.55,77.20621557]
[1754486588264,0.03,164.57,164.55,83.28335205]
[1754486589047,0.03,164.57,164.55,77.20621557]
[1754486589244,0.03,164.57,164.55,83.28338569]
[1754486589447,0.03,164.57,164.55,131.92068055]
[1754486589635,0.03,164.57,164.56,0.71]
[1754486590142,0.03,164.57,164.56,21.04351043]
[1754486590342,0.03,164.57,164.56,27.12032131]
[1754486591652,0.03,164.57,164.56,89.22032131]
[1754486592250,0.03,164.57,164.56,88.51032131]
[1754486592548,0.03,164.57,164.56,77.20621557]
[1754486592757,0.72,164.57,164.56,62.1]
[1754486592935,0.03,164.57,164.56,62.1]
[1754486593653,0.03,164.57,164.56,83.99302645]
[1754486593854,0.03,164.57,164.56,89.22032131]
[1754486595358,0.03,164.57,164.56,88.51032131]
[1754486595652,0.03,164.57,164.56,77.20621557]
[1754486596355,0.72,164.57,164.56,77.20621557]
[1754486597059,0.03,164.57,164.56,77.20621557]
[1754486597638,0.03,164.57,164.56,83.28302645]
[1754486598461,0.03,164.57,164.56,77.20621557]
[1754486598842,0.72,164.57,164.56,77.20621557]
[1754486599364,0.72,164.57,164.56,62.1]
[1754486599554,5.94729486,164.57,164.56,62.1]
[1754486600266,0.72,164.57,164.56,62.1]
[1754486601463,5.94729486,164.57,164.56,62.1]
[1754486602860,0.72,164.57,164.56,62.1]
[1754486603060,5.94729486,164.57,164.56,62.1]
[1754486603280,0.03,164.57,164.56,62.1]
[1754486603680,0.03,164.57,164.55,15.10621557]
[1754486604565,0.03,164.57,164.56,15.81621557]
[1754486605374,0.03,164.57,164.56,21.89302645]
[1754486606175,0.03,164.57,164.56,15.81621557]
[1754486606481,0.03,164.57,164.56,21.89302645]
[1754486606979,0.03,164.57,164.56,15.81621557]
[1754486608681,0.03,164.57,164.56,15.10621557]
[1754486609375,0.03,164.57,164.56,21.18302645]
[1754486609585,0.03,164.57,164.56,83.28302645]
[1754486610485,0.03,164.57,164.56,83.99302645]
[1754486612287,0.03,164.57,164.56,62.1]
[1754486612582,0.03,164.57,164.56,83.99302645]
[1754486613387,0.03,164.57,164.56,89.22032131]
[1754486615487,42.68,164.62,164.6,15.10621557]
[1754486615668,0.67,164.64,164.6,83.11351043]
[1754486616369,5.89729486,164.63,164.59,62.07]
[1754486616571,0.67,164.62,164.59,110.82556913]
[1754486616800,0.67,164.62,164.59,68.14556913]
[1754486617489,0.67,164.62,164.59,68.85556913]
[1754486618359,9.3196635,164.63,164.59,68.85556913]
[1754486618572,9.9896635,164.63,164.59,68.85556913]
[1754486619188,4.76236864,164.63,164.59,68.85556913]
[1754486619394,9.3196635,164.63,164.59,68.85556913]
[1754486619591,0.67,164.62,164.59,68.85556913]
[1754486620390,0.67,164.62,164.59,68.14565279]
[1754486620593,0.67,164.62,164.59,68.85565279]
[1754486621309,0.67,164.62,164.59,62.78]
[1754486621506,5.89729486,164.61,164.59,62.07]
[1754486621679,0.67,164.6,164.59,77.17621557]
[1754486622026,4.09236864,164.62,164.59,83.96182531]
[1754486622311,9.3196635,164.63,164.6,0.71]
[1754486622600,5.89729486,164.62,164.59,77.17621557]
[1754486622797,4.09236864,164.62,164.59,77.17621557]
[1754486623108,0.67,164.61,164.59,77.17621557]
[1754486623311,9.3196635,164.62,164.59,77.17621557]
[1754486623593,4.09236864,164.62,164.6,21.04351043]
[1754486623795,35.3496635,164.64,164.61,0.71]
[1754486624098,4.09236864,164.63,164.62,15.10621557]
[1754486624282,4.12236864,164.64,164.62,15.10621557]
[1754486625183,4.12236864,164.64,164.61,20.33351043]
[1754486625405,4.12236864,164.64,164.62,0.71]
[1754486625589,4.12236864,164.64,164.62,6.07459603]
[1754486625907,0.03,164.64,164.63,21.04351043]
[1754486627599,0.03,164.64,164.63,27.11773748]
[1754486628001,0.03,164.64,164.63,21.89044262]
[1754486628189,0.03,164.64,164.63,27.11773748]
[1754486636596,0.03,164.64,164.63,83.96044262]
[1754486636798,0.03,164.64,164.63,131.11773748]
[1754486637519,0.7,164.64,164.63,119.81621557]
[1754486637909,0.03,164.64,164.63,125.89044262]
[1754486638099,0.03,164.64,164.63,131.11773748]
[1754486638299,0.03,164.64,164.63,131.82773748]
[1754486638528,0.03,164.64,164.63,131.11773748]
[1754486639231,0.03,164.64,164.63,119.81621557]
[1754486640623,0.03,164.64,164.63,77.17621557]
[1754486640624,0.7,164.64,164.63,77.17621557]
[1754486640827,0.03,164.64,164.63,83.25044262]
[1754486641730,0.03,164.64,164.63,89.18773748]
[1754486641911,0.03,164.64,164.63,83.96044262]
[1754486643013,0.03,164.64,164.63,89.18773748]
[1754486645930,0.03,164.64,164.63,88.47773748]
[1754486647015,0.03,164.64,164.63,83.25044262]
[1754486647724,0.03,164.64,164.63,88.47773748]
[1754486647928,0.03,164.64,164.63,89.18773748]
[1754486649530,0.03,164.64,164.63,27.11773748]
[1754486654449,0.03,164.64,164.63,21.89044262]
[1754486654648,0.03,164.64,164.63,27.11773748]
[1754486654824,0.03,164.64,164.63,21.89044262]
[1754486655147,0.71,164.64,164.63,15.10621557]
[1754486657118,0.71,164.64,164.61,6.07487825]
[1754486657320,5.93729486,164.64,164.61,42.62]
[1754486657525,0.68,164.63,164.6,57.72621557]
[1754486657814,0.68,164.63,164.6,15.10621557]
[1754486657815,5.90729486,164.63,164.6,15.10621557]
[1754486658238,0.68,164.62,164.6,15.10621557]
[1754486658439,0.68,164.61,164.6,15.10621557]
[1754486658833,0.68,164.61,164.6,21.18146214]
[1754486659029,0.68,164.63,164.6,21.18146214]
[1754486659240,0.68,164.63,164.6,26.408757]
[1754486660159,0.68,164.63,164.6,27.118757]
[1754486660638,0.68,164.63,164.6,26.408757]
[1754486660834,0.68,164.62,164.6,21.18146214]
[1754486661140,0.68,164.61,164.6,21.18146214]
[1754486662130,0.68,164.63,164.6,21.18146214]
[1754486662330,0.68,164.63,164.6,21.89146214]
[1754486662526,5.25729486,164.64,164.6,15.10621557]
[1754486662726,0.68,164.62,164.6,15.10621557]
[1754486662950,5.22729486,164.63,164.6,15.10621557]
[1754486663142,0.68,164.61,164.6,15.10621557]
[1754486663337,0.68,164.61,164.6,21.18154971]
[1754486663653,0.68,164.62,164.6,21.18154971]
[1754486664429,5.93729486,164.64,164.6,21.18154971]
[1754486664629,0.68,164.63,164.6,21.18154971]
[1754486666042,5.90729486,164.63,164.6,21.18154971]
[1754486666545,0.68,164.63,164.6,21.18154971]
[1754486666744,5.90729486,164.63,164.6,21.18154971]
[1754486666946,0.68,164.63,164.6,21.18154971]
[1754486667251,0.68,164.63,164.6,21.89154971]
[1754486668536,5.25729486,164.64,164.6,21.89154971]
[1754486668850,5.93729486,164.64,164.6,21.89154971]
[1754486669057,0.71,164.64,164.6,26.40884457]
[1754486669256,0.71,164.64,164.61,0.71]
[1754486670546,0.71,164.64,164.6,27.11884457]
[1754486670949,0.68,164.63,164.6,27.11884457]
[1754486671566,0.71,164.64,164.6,27.11884457]
[1754486673083,0.03,164.64,164.63,15.10621557]
[1754486673238,5.25729486,164.64,164.59,21.18191883]
[1754486673437,5.93729486,164.64,164.6,0.66]
[1754486674363,5.93729486,164.64,164.61,6.07496506]
[1754486675237,5.93729486,164.64,164.61,6.73496506]
[1754486675439,0.71,164.64,164.61,6.73496506]
[1754486675761,0.03,164.64,164.62,15.10621557]
[1754486675949,0.03,164.64,164.62,15.76621557]
[1754486676442,0.03,164.64,164.62,21.84045154]
[1754486676644,0.03,164.64,164.62,21.18045154]
[1754486676967,5.90729486,164.63,164.6,15.10621557]
[1754486677168,0.68,164.62,164.6,21.18143051]
[1754486677462,5.22729486,164.63,164.6,21.18143051]
[1754486677661,5.90729486,164.63,164.6,21.18143051]
[1754486678542,0.68,164.63,164.6,21.18143051]
[1754486678739,5.93729486,164.64,164.6,21.84143051]
[1754486678953,5.93729486,164.64,164.61,0.66]
[1754486679854,5.25729486,164.64,164.6,21.18143051]
[1754486680070,0.68,164.63,164.6,21.18143051]
[1754486680365,5.25729486,164.64,164.6,21.18143051]
[1754486680558,0.68,164.62,164.6,21.18143051]
[1754486681144,5.90729486,164.61,164.56,5.22729486]
[1754486681356,5.90729486,164.6,164.56,15.10621557]
[1754486681559,0.68,164.59,164.56,21.18300739]
[1754486681765,5.90729486,164.59,164.56,15.10621557]
[1754486681968,0.68,164.58,164.56,15.10621557]
[1754486683045,5.90729486,164.58,164.55,15.16621557]
[1754486683878,0.68,164.58,164.55,15.16621557]
[1754486684052,5.90729486,164.58,164.55,15.16621557]
[1754486684254,11.98336728,164.58,164.55,15.16621557]
[1754486684458,11.98336728,164.58,164.55,0.06]
[1754486685272,16.07663068,164.58,164.55,0.06]
[1754486685477,11.98336728,164.58,164.55,0.06]
[1754486685673,16.07422535,164.58,164.55,0.06]
[1754486686459,16.07211272,164.58,164.55,0.06]
[1754486687489,11.98336728,164.58,164.55,0.06]
[1754486687997,26.0,164.56,164.55,0.06]
[1754486688294,35.31396425,164.56,164.55,0.06]
[1754486688462,37.98410574,164.56,164.55,0.06]
[1754486690959,80.60410574,164.56,164.55,0.06]
[1754486694556,48.69681088,164.56,164.55,0.06]
[1754486694764,53.92410574,164.56,164.55,0.06]
[1754486694992,54.60410574,164.56,164.55,0.06]
[1754486695462,63.1925082,164.56,164.55,0.06]
[1754486697427,65.6284872,164.56,164.55,0.06]
[1754486699202,65.6284872,164.56,164.49,0.06]
[1754486699203,26.0,164.53,164.49,0.06]
[1754486699401,5.22729486,164.5,164.49,0.06]